Cogmind - Beta 15 @@@ ROGUE MODE // 2025.08.15 @ 17:34:47 Player: Zen9890 Result: Destroyed by Y-54 Guardian with Flak Gun Performance ------------- Evolutions (3) 1500 Regions Visited (6) 1200 Robots Destroyed (57) 285 Value Destroyed (2377) 2377 Prototype IDs (0) 0 Alien Tech Used (0) 0 Bonus (280) 280 TOTAL SCORE: 5642 Bonus ------- High Alert Combat Kills 80 Entered Garrisons 200 Cogmind --------- Core Integrity 0/700 Matter 288/300 Energy 38/100 System Corruption 7% Temperature Cool (23) Movement Core (100) Ox1 Location -7/Garrison Parts ------- > --- POWER (1) -------- (None) > --- PROPULSION (4) --- (None) > --- UTILITY (4) ------ Improved Heat Sink > --- WEAPON (4) ------- Gatling Laser > --- INVENTORY (5) ---- Improved Heat Sink Sensor Array Signal Interpreter Peak State ------------ > --- POWER ------------ Light Nuclear Core > --- PROPULSION ------- Carbon-fiber Leg Carbon-fiber Leg Carbon-fiber Leg Titanium Leg > --- UTILITY ---------- Small Storage Unit Melee Analysis Suite Hacking Suite Hacking Suite > --- WEAPON ----------- Gauss Cannon Gauss Cannon Gauss Cannon Katana > --- INVENTORY -------- Carbon-fiber Leg Carbon-fiber Leg Carbon-fiber Leg Sensor Array Signal Interpreter Gauss Rifle [Rating: 41] Favorites ----------- Power Ion Engine Engine Ion Engine Power Core Light Nuclear Core Propulsion Carbon-fiber Leg Treads Light Treads Leg Carbon-fiber Leg Utility Small Storage Unit Device Seismic Detector Storage Small Storage Unit Processor Melee Analysis Suite Hackware Hacking Suite Protection Improved Light Armor Plating Weapon Light Assault Rifle Energy Gun Particle Gun Ballistic Gun Light Assault Rifle Ballistic Cannon Gauss Cannon Special Weapon Mining Laser Impact Weapon Mace Slashing Weapon Katana Build | -11 -10 -10 -9 -8 -7 -7 ------- Run | Yrd Mat Min Mat Mat Fac Gar Slots Evolved 6 | . . . 2 2 2 . Power . | . . . . . . . Propulsion 2 | . . . . 2 . . Utility 2 | . . . . . 2 . Weapon 2 | . . . 2 . . . Parts Attached 53 | 7 3 2 4 13 2 22 Power 5 | 1 . . . 1 . 3 Engine 2 | 1 . . . . . 1 Core 3 | . . . . 1 . 2 Reactor . | . . . . . . . Propulsion 14 | 2 . . 2 5 . 5 Treads 1 | . . . . . . 1 Leg 13 | 2 . . 2 5 . 4 Wheel . | . . . . . . . Hover . | . . . . . . . Flight . | . . . . . . . Utility 9 | 2 . . . 1 2 4 Device 3 | 1 . . . . . 2 Storage 1 | 1 . . . . . . Processor 1 | . . . . 1 . . Hackware 2 | . . . . . 2 . Protection 2 | . . . . . . 2 Artifact . | . . . . . . . Weapon 25 | 2 3 2 2 6 . 10 Energy Gun 3 | . . . . . . 3 Energy Cannon . | . . . . . . . Ballistic Gun 16 | 2 2 2 2 2 . 6 Ballistic Cannon 3 | . . . . 3 . . Launcher . | . . . . . . . Special Weapon 1 | . 1 . . . . . Impact Weapon 1 | . . . . . . 1 Slashing Weapon 1 | . . . . 1 . . Piercing Weapon . | . . . . . . . Special Melee Weapon . | . . . . . . . Unidentified Prototypes . | . . . . . . . Parts Lost 32 | . . . . 2 . 30 Power 4 | . . . . 1 . 3 Propulsion 11 | . . . . . . 11 Utility 6 | . . . . 1 . 5 Weapon 11 | . . . . . . 11 Highest Loss Streak 17 | . . . . 2 . 17 To Critical Strikes . | . . . . . . . Average Backups 7 | 2 6 8 7 7 6 7 Power . | . . . . . . 1 Propulsion 2 | 1 2 2 3 2 3 1 Utility 2 | . 1 2 2 3 2 2 Weapon 1 | . 3 4 2 1 1 1 Tool/Special . | . . . . . . . Unused Backups 9 | . 2 . 2 1 . 4 Power . | . . . . . . . Propulsion 5 | . 1 . 2 . . 2 Utility 3 | . 1 . . . . 2 Weapon 1 | . . . . 1 . . Tool/Special . | . . . . . . . Average Slot Usage (%) 95 | . 100 100 99 98 99 89 Engine 6 | . 14 14 11 3 . 5 Core 2 | . . . . 5 7 1 Treads 2 | . . . . . . 4 Leg 26 | . 28 28 22 35 30 20 Device 6 | . 14 14 11 2 . 5 Storage 8 | . 14 14 11 9 7 7 Processor 1 | . . . . 4 7 . Hackware 4 | . . . . . 14 7 Protection 2 | . . . . . . 4 Energy Gun 3 | . . . . . . 7 Ballistic Gun 21 | . 28 28 43 28 . 11 Ballistic Cannon 3 | . . . . 2 23 2 Impact Weapon 2 | . . . . . . 5 Slashing Weapon 1 | . . . . 4 7 . Peak Build Rating 41 | 7 8 7 16 36 41 41 Average Rating 24 | 4 7 7 15 26 40 29 On Entrance 16 | . 7 7 7 16 36 41 Naked Turns . | . . . . . . . Heaviest Build 33 | 14 14 13 19 33 33 33 Greatest Support 62 | 20 20 20 30 60 45 62 Greatest Overweight (x) 2 | . . . . 1 . 2 Average Overweight (x) . | . . . . . . . Largest Inventory Capacity 8 | 8 8 8 8 8 8 8 Average Capacity 7 | 6 8 8 8 8 8 7 Most Carried 8 | 5 8 8 8 8 8 8 Average Carried 7 | 3 7 8 7 7 6 7 Final Capacity 8 | 8 8 8 8 8 8 5 Final Carried 8 | 5 8 8 8 8 8 3 Class Distribution -------------------- 30% | Scavenger-Tank 29% | Gunner 15% | Mutant 14% | Scavenger-Gunner 9% | Hacker-Gunner Dominant Class ---------------- Mutant | -10/Materials Mutant | -10/Mines Gunner | -9/Materials Gunner | -8/Materials Hacker-Gunner | -7/Factory Scavenger-Tank | -7/Garrison Resources | -11 -10 -10 -9 -8 -7 -7 ----------- Run | Yrd Mat Min Mat Mat Fac Gar Matter Collected 1931 | 240 33 77 154 494 121 812 Remotely . | . . . . . . . Salvage Created 2155 | 51 50 45 154 613 95 1147 Parts 116 | 7 6 7 8 36 9 43 Haulers Intercepted 1 | . . . . 1 . . Recyclers Shooed . | . . . . . . . Parts Field Recycled . | . . . . . . . Retrieved Matter . | . . . . . . . Parts Self-Destructed . | . . . . . . . Prevented . | . . . . . . . Kills | -11 -10 -10 -9 -8 -7 -7 ------- Run | Yrd Mat Min Mat Mat Fac Gar Combat Hostiles Destroyed 49 | . 3 3 5 10 3 25 Melee 5 | . . . . . 1 4 Guns 37 | . 3 3 5 10 . 16 Cannons 5 | . . . . . 2 3 Classes Destroyed 13 | 1 1 . 3 4 1 3 Builder 2 | . . . . . 2 . Tunneler 2 | 2 . . . . . . Hauler 1 | . . . . 1 . . Operator 1 | . . . . 1 . . Watcher 2 | . . . 1 1 . . Swarmer 11 | . 3 3 3 . 2 . Grunt 17 | . . . 1 6 . 10 Brawler 1 | . . . . . . 1 Duelist 1 | . . . . 1 . . Sentry 10 | . . . 1 2 1 6 Specialist 1 | . . . . . . 1 Hunter 2 | . . . . 1 . 1 Programmer 4 | . . . . . . 4 Butcher 1 | . . . . . . 1 Guerrilla 1 | . . . . . . 1 Best Kill Streak 6 | 2 3 3 4 4 3 6 Combat Bots Only 6 | . 3 3 4 3 2 6 Max Kills in Single Turn 2 | 1 2 1 1 1 1 2 Gunslinging 1 | . 1 . . . . 1 Exploded . | . . . . . . . Melee 1 | . . . . . 1 1 Uniques/NPCs Destroyed . | . . . . . . . Combat | -11 -10 -10 -9 -8 -7 -7 -------- Run | Yrd Mat Min Mat Mat Fac Gar Hostile Shots Fired 651 | . 8 18 23 67 77 458 Missed 221 | . 2 2 9 23 38 147 Hits 430 | . 6 16 14 44 39 311 Melee 4 | . . . . 3 . 1 Projectile 426 | . 6 16 14 41 39 310 Critical Strikes 7 | . . . . . . 7 Damage Taken 4559 | . 49 126 125 733 376 3150 Core 799 | . . 6 34 59 39 661 Absorbed by Shields . | . . . . . . . Core Remaining (%) 94 | 100 . 97 91 89 . . Volleys Fired 129 | 3 4 8 15 35 8 56 Largest 4 | 2 2 2 4 4 3 4 Hottest 210 | 40 100 40 86 100 120 210 Shots Fired 382 | 6 7 16 60 123 24 146 Gun 321 | 6 6 16 60 122 . 111 Cannon 59 | . . . . . 24 35 Launcher . | . . . . . . . Special 2 | . 1 . . 1 . . Kinetic 343 | 6 6 16 60 122 24 109 Thermal 39 | . 1 . . 1 . 37 Explosive . | . . . . . . . Electromagnetic . | . . . . . . . Robot Hit Streak 12 | 1 2 4 6 12 4 12 Robot Miss Streak 6 | 1 1 3 6 4 4 5 Penetration Max 1 | . . . . 1 . 1 Secondary Targets 9 | . 1 . 2 3 . 3 Max Gunslinging Chain 1 | . 1 . 1 1 . 1 Shots Hit Robots 251 | 2 4 9 25 81 12 118 Core Hits 138 | 2 3 3 10 38 6 76 Critical Kills 1 | . . . . . . 1 Critical Parts Destroyed 4 | . . . . 1 . 3 Critical Strikes 8 | . . . . 1 . 7 Burn 1 | . . . . . . 1 Destroy 1 | . . . . 1 . . Blast 1 | . . . . . . 1 Smash 4 | . . . . . . 4 Sever 1 | . . . . . . 1 Melee Attacks 26 | . . . . 1 1 24 Impact 19 | . . . . . . 19 Slashing 7 | . . . . 1 1 5 Piercing . | . . . . . . . Sneak Attacks 1 | . . . . . . 1 Combat Hostiles 1 | . . . . . . 1 Follow-up Attacks . | . . . . . . . Damage Inflicted 4444 | 36 53 79 283 979 374 2640 Guns 3152 | 36 53 79 283 949 . 1752 Cannons 777 | . . . . . 339 438 Explosions . | . . . . . . . Melee 511 | . . . . 30 35 446 Ramming 4 | . . . . . . 4 Kinetic 3262 | 36 53 79 283 949 339 1523 Thermal 667 | . . . . . . 667 Explosive . | . . . . . . . Electromagnetic . | . . . . . . . Impact 287 | . . . . . . 287 Slashing 224 | . . . . 30 35 159 Piercing . | . . . . . . . Highest Corruption 7 | . . . . . . 7 Average Corruption 5 | . . . . . . 5 Corruption Purged . | . . . . . . . Corruption Blocked . | . . . . . . . Effects 20 | . . . . . . 20 Message Errors 7 | . . . . . . 7 Matter Fused 2 | . . . . . . 2 Heat Flow Errors 1 | . . . . . . 1 Energy Discharges 4 | . . . . . . 4 Parts Rejected 1 | . . . . . . 1 Parts Fused 1 | . . . . . . 1 Data Loss (minor) 2 | . . . . . . 2 Alerts 1 | . . . . . . 1 Weapon Failures 1 | . . . . . . 1 Overload Shots . | . . . . . . . Overflow Damage 78 | . . . . . . 78 Projectiles . | . . . . . . . Explosions . | . . . . . . . Melee 78 | . . . . . . 78 Knockbacks 6 | . . . . . 1 5 Impact . | . . . . . . . Kinetic 6 | . . . . . 1 5 Secondary . | . . . . . . . Self-Inflicted Damage 1 | . . . . . . 1 Shots . | . . . . . . . Rammed 2 | . . . . . . 2 Targets Rammed 2 | . . . . . . 2 Kicked . | . . . . . . . Crushed . | . . . . . . . Highest Temperature 357 | . 20 . 205 145 216 357 Average Temperature 94 | . 12 . 86 48 92 129 Received Heat Transfer 1314 | . . . . 243 54 1017 Effects 2 | . . . . . . 2 Energy Bleed 2 | . . . . . . 2 Siege Activations . | . . . . . . . Martial Activations . | . . . . . . . Shielding Activations . | . . . . . . . Robots Disrupted . | . . . . . . . Combat Hostiles . | . . . . . . . Robots Corrupted 2 | . . . . . . 2 Combat Hostiles 2 | . . . . . . 2 Parts Fried 2 | . . . . . . 2 Impact Corruptions 3 | . . . . . . 3 Robots Melted . | . . . . . . . Combat Hostiles . | . . . . . . . Parts Melted 9 | . . . . . . 9 Heat Transferred 1616 | . . . . . . 1616 Parts Sabotaged . | . . . . . . . Parts Stolen . | . . . . . . . Parts Stripped . | . . . . . . . Power Chain Reactions . | . . . . . . . Alert | -11 -10 -10 -9 -8 -7 -7 ------- Run | Yrd Mat Min Mat Mat Fac Gar Maximum Alert Level 2 | . . . . . . 2 Low Security (%) 73 | 100 100 100 100 100 100 33 Level 1 11 | . . . . . . 28 Level 2 15 | . . . . . . 37 Level 3 . | . . . . . . . Level 4 . | . . . . . . . Level 5 . | . . . . . . . High Security . | . . . . . . . Max Security . | . . . . . . . Peak Influence 536 | 10 85 75 90 136 87 536 Initial 53 | . . 25 21 11 46 53 Average 145 | 1 23 49 30 70 49 291 Influence Increases 1447 | 10 99 70 137 317 111 703 Destroy 0b10 Robot/C 980 | . 60 60 100 200 60 500 Destroy 0b10 Robot/NC 40 | 10 . . 5 15 10 . Destroy Leader 146 | . 10 10 32 54 10 30 Successful Hack 42 | . 14 . . . 10 18 Disable Machine 30 | . 15 . . . . 15 Anti-Garrison Action 100 | . . . . . . 100 Destroy Structure 34 | . . . . 3 6 25 Lose Combat Pursuer 75 | . . . . 45 15 15 Influence Decreases 991 | 10 34 80 165 241 137 324 Entered New Map 171 | . . 40 34 16 57 24 Time Decay 500 | 10 34 40 131 205 80 . Lost Part 320 | . . . . 20 . 300 Squads Dispatched 5 | . . . 2 3 . . Investigation 3 | . . . 2 1 . . Extermination . | . . . . . . . Reinforcement 2 | . . . . 2 . . Assault . | . . . . . . . Garrison . | . . . . . . . Intercept . | . . . . . . . Searches Triggered . | . . . . . . . Construction Impeded . | . . . . . . . Haulers Reinforced . | . . . . . . . Active Scanning Responses . | . . . . . . . Cargo Convoy Interrupts . | . . . . . . . Stealth | -11 -10 -10 -9 -8 -7 -7 --------- Run | Yrd Mat Min Mat Mat Fac Gar Distress Signals . | . . . . . . . Communications Jammed . | . . . . . . . Distress Signals . | . . . . . . . Times Spotted 62 | . 4 3 6 17 6 26 Peak Tracking Total 6 | . 3 3 3 6 3 6 Tactical Retreats 4 | . . . . 2 1 1 Traps | -11 -10 -10 -9 -8 -7 -7 ------- Run | Yrd Mat Min Mat Mat Fac Gar Traps Triggered 1 | . . . 1 . . . Indirectly . | . . . . . . . Trap Hack Attempts . | . . . . . . . Triggered . | . . . . . . . Disarmed . | . . . . . . . Reprogrammed . | . . . . . . . Reused . | . . . . . . . Traps Extracted . | . . . . . . . Installed . | . . . . . . . Triggered . | . . . . . . . Machines | -11 -10 -10 -9 -8 -7 -7 ---------- Run | Yrd Mat Min Mat Mat Fac Gar Machines Disabled 3 | . 1 . . . . 2 Max in Single Turn 1 | . 1 . . . . 1 Garrison Relay 1 | . . . . . . 1 Machines Repaired . | . . . . . . . Machines Dismantled . | . . . . . . . Machines Sabotaged . | . . . . . . . Overloaded Fab Kills . | . . . . . . . Hacking | -11 -10 -10 -9 -8 -7 -7 --------- Run | Yrd Mat Min Mat Mat Fac Gar Machines Accessed 9 | . 2 . 2 2 1 2 Terminals 5 | . 1 . 1 1 . 2 Fabricators . | . . . . . . . Repair Stations . | . . . . . . . Recycling Units 3 | . 1 . 1 1 . . Scanalyzers . | . . . . . . . Garrison Access 1 | . . . . . 1 . Total Hacks 17 | . 4 . 3 5 1 4 Successful 9 | . 2 . 1 3 1 2 Failed 8 | . 2 . 2 2 . 2 Catastrophic 3 | . 1 . 1 1 . . Database Lockouts . | . . . . . . . Manual 1 | . 1 . . . . . Terminals 11 | . 3 . 2 2 . 4 Fabricators . | . . . . . . . Repair Stations . | . . . . . . . Recycling Units 5 | . 1 . 1 3 . . Scanalyzers . | . . . . . . . Garrison Access 1 | . . . . . 1 . Terminal Hacks 3 | . 1 . . . . 2 Open Door 1 | . . . . . . 1 Emergency Access Points 2 | . 1 . . . . 1 Fabricator Hacks . | . . . . . . . Repair Station Hacks . | . . . . . . . Recycling Unit Hacks 5 | . 1 . 1 3 . . Report Inventory 3 | . 1 . 1 1 . . Retrieve Components 2 | . . . . 2 . . Scanalyzer . | . . . . . . . Garrison Access Hacks 1 | . . . . . 1 . Unlock Access 1 | . . . . . 1 . Unauthorized Hacks . | . . . . . . . Terminals . | . . . . . . . Fabricators . | . . . . . . . Repair Stations . | . . . . . . . Recycling Units . | . . . . . . . Scanalyzers . | . . . . . . . Garrison Access . | . . . . . . . Data Cores Recovered . | . . . . . . . Used . | . . . . . . . Hacking Detections 6 | . 1 . 1 2 1 1 Full Trace Events 4 | . . . 1 2 . 1 Feedback Events . | . . . . . . . Feedback Blocked . | . . . . . . . Robot Schematics Acquired . | . . . . . . . Robots Built . | . . . . . . . Authchips . | . . . . . . . Time . | . . . . . . . Total Robot Build Rating . | . . . . . . . Part Schematics Acquired . | . . . . . . . Parts Built . | . . . . . . . Authchips . | . . . . . . . Time . | . . . . . . . Total Part Build Rating . | . . . . . . . Parts Repaired . | . . . . . . . Time . | . . . . . . . Parts Recycled . | . . . . . . . Recycled Matter . | . . . . . . . Retrieved Matter . | . . . . . . . Retrieved Components 10 | . . . . 10 . . Parts Scanalyzed . | . . . . . . . Part Schematics Acquired . | . . . . . . . Parts Damaged . | . . . . . . . Bothacking | -11 -10 -10 -9 -8 -7 -7 ------------ Run | Yrd Mat Min Mat Mat Fac Gar Used RIF Installer . | . . . . . . . Robots Hacked . | . . . . . . . Non-combat . | . . . . . . . Combat . | . . . . . . . Robot Hacks Applied . | . . . . . . . Relay Couplers Released 5 | . . . . . . 5 Machine Destruction 5 | . . . . . . 5 Fabnet Peak Effective % . | . . . . . . . Robots Rewired . | . . . . . . . Allies Hacked . | . . . . . . . Hacks Repelled . | . . . . . . . Allies | -11 -10 -10 -9 -8 -7 -7 -------- Run | Yrd Mat Min Mat Mat Fac Gar Total Allies . | . . . . . . . Largest Group . | . . . . . . . Highest-Rated Group . | . . . . . . . Highest-Rated Ally . | . . . . . . . Total Orders . | . . . . . . . Ally Attacks . | . . . . . . . Total Damage . | . . . . . . . Kills . | . . . . . . . Allies Corrupted . | . . . . . . . Allies Melted . | . . . . . . . Intel | -11 -10 -10 -9 -8 -7 -7 ------- Run | Yrd Mat Min Mat Mat Fac Gar Active Infowar (turns) 734 | 18 151 95 315 155 . . Seismic 734 | 18 151 95 315 155 . . Robot Analysis Total . | . . . . . . . Derelict Logs Recovered . | . . . . . . . Drone Launches . | . . . . . . . Drone Recoveries . | . . . . . . . Exploration | -11 -10 -10 -9 -8 -7 -7 ------------- Run | Yrd Mat Min Mat Mat Fac Gar Turns Passed 2217 | 95 151 95 315 504 161 896 Spaces Moved 1158 | 61 101 57 215 290 107 327 Core 9 | 7 . . . . . 2 Treads 11 | . . . . . . 11 Legs 1138 | 54 101 57 215 290 107 314 Wheels . | . . . . . . . Hover . | . . . . . . . Flight . | . . . . . . . Fastest Speed 50 | 50 120 120 120 120 120 100 Average Speed 137 | 111 120 120 120 125 120 179 Slowest Speed 260 | 120 120 120 120 190 120 260 Overloaded Moves . | . . . . . . . Propulsion Burnouts . | . . . . . . . Robots Hopped . | . . . . . . . Potential Cave-ins . | . . . . . . . Cave-ins Triggered . | . . . . . . . Exploration Rate (%) 22 | 5 30 16 24 25 4 55 Regions Visited 6 Branch Regions 1 Pre-discovered Areas . | . . . . . . . Known Exits Taken 1 | . . . . . 1 . Unknown Exits Taken 5 | 1 1 1 1 1 . . Scrap Searched . | . . . . . . . Spaces Dug 1 | . . . . 1 . . Terrain Destroyed 8 | . . . . 2 6 . Melee . | . . . . . . . Projectile 8 | . . . . 2 6 . AOE . | . . . . . . . Terrain Rammed . | . . . . . . . Walls Destroyed . | . . . . . . . Machines Disabled . | . . . . . . . Actions | -11 -10 -10 -9 -8 -7 -7 --------- Run | Yrd Mat Min Mat Mat Fac Gar Total 1488 | 82 122 72 247 364 120 481 Wait 40 | . 8 4 . 11 . 17 Move 1153 | 60 100 56 214 289 107 327 Hop . | . . . . . . . Pick Up 48 | 12 5 . 6 5 2 18 Fast Attach 9 | . . . 2 6 . 1 Attach 33 | 7 . . 2 2 2 20 Detach . | . . . . . . . Swap 24 | . 3 2 2 7 . 10 Drop 24 | . 2 2 6 8 . 6 Fire 129 | 3 4 8 15 35 8 56 Melee 26 | . . . . 1 1 24 Ram 2 | . . . . . . 2 Kick . | . . . . . . . Crush . | . . . . . . . Escape Stasis . | . . . . . . . Rewire . | . . . . . . . Trap . | . . . . . . . Miscellaneous . | . . . . . . . Route ------- -11/Scrapyard -10/Materials -10/Mines -9/Materials -8/Materials -7/Factory -7/Garrison (discovered 2 exits: [*Fac x2]) History --------- Turn | Location | Event 5 | -11/Scrapyard | Discovered new exit (range 15) 96 | -11/Scrapyard | Entered Materials 211 | -10/Materials | Discovered new exit (range 16) 247 | -10/Materials | Entered Mines 324 | -10/Mines | Build established: Mutant 327 | -10/Mines | Discovered new exit (range 7) 342 | -10/Mines | Entered Materials 342 | -9/Materials | Evolved 2 slots: Weapon x2 629 | -9/Materials | Build established: Gunner 632 | -9/Materials | Discovered new exit (range 16) 657 | -9/Materials | Entered another Materials area 657 | -8/Materials | Evolved 2 slots: Propulsion x2 1103 | -8/Materials | Discovered new exit (range 16) 1161 | -8/Materials | Entered Factory 1161 | -7/Factory | Evolved 2 slots: Utility x2 1322 | -7/Factory | Identified exit to Garrison 1322 | -7/Factory | Entered Garrison 1355 | -7/Garrison | Triggered checkpoint 1482 | -7/Garrison | Lost 17 parts (1p7n2u7w) 1600 | -7/Garrison | Triggered checkpoint 1608 | -7/Garrison | Triggered checkpoint 1612 | -7/Garrison | Core integrity fell below 50% 1702 | -7/Garrison | Discovered new exit (range 10) 1744 | -7/Garrison | Build established: Scavenger-Tank 1864 | -7/Garrison | Triggered checkpoint 1883 | -7/Garrison | Garrison Relay disabled 2144 | -7/Garrison | Lost 3 parts (2n1u) 2160 | -7/Garrison | Discovered new exit (range 15) 2203 | -7/Garrison | Core integrity fell below 20% 2218 | -7/Garrison | Destroyed by Y-54 Guardian with Flak Gun Last Messages --------------- 02196_ Flak Gun destroyed. 02196_ Aluminum Leg destroyed. 02199_ Flak Gun destroyed. 02202_ Aluminum Leg destroyed. 02203_ Slammed into Y-54 Guardian. 02203_ Destabilizing: System corrupted (+1). 02204_ Penetrated by Slug. 02204_ Imp. Deuterium Engine destroyed. 02207_ Flak Gun destroyed. 02209_ Hacking Suite destroyed. 02209_ Slammed into Y-54 Guardian. 02210_ Penetrated by Slug. 02210_ Sml. Storage Unit destroyed. 02211_ Acquired 3 matter. 02213_ Penetrated by Slug. 02213_ Particle Gun destroyed. 02216_ Penetrated by Slug. 02216_ Lgt. Nuclear Core destroyed. 02218_ Lgt. Nuclear Core melted. 02218_ H-55 Commando destroyed. Map ----- +----------------------------------------------------+ | | | | | | | | | | | ?????????????????????????????????????????????????? | | ?????????????????????????????????????????????????? | | ?????????????????????????????????????????????????? | | ?????????????????????????????????????????????????? | | ?????????????????????????????????????????????????? | | ?????????????????????????????????????????????????? | | ?????????????????????????????????????????????????? | | ?????????????????????????????????????????????????? | | ??????????????????????#####??????????????????????? | | ??????????????????????# ??????????????????????? | | ??????????????????????#